bitfinex/quotes_ETHUSD_20240713
["timestamp","ask_amount","ask_price","bid_price","bid_amount"]
[1720853394340,1.1019573,3143.9,3143.7,0.809]
[1720853394711,0.03286105,3143.8,3143.7,0.809]
[1720853394926,1.13481835,3143.8,3143.7,0.809]
[1720853395138,0.03286105,3143.8,3143.7,0.809]
[1720853395509,1.10204454,3143.8,3143.7,0.809]
[1720853395720,1.13490559,3143.8,3143.7,0.809]
[1720853396004,1.13490559,3143.8,3143.5,0.809]
[1720853396238,1.10204454,3143.7,3143.5,0.809]
[1720853396943,1.10204454,3143.9,3143.5,0.809]
[1720853398535,1.10210796,3143.8,3143.5,0.809]
[1720853398715,1.10210796,3143.7,3143.5,0.809]
[1720853399043,2.3593,3144.0,3143.5,0.809]
[1720853399248,1.10206744,3143.9,3143.5,0.809]
[1720853399414,1.10206744,3143.8,3143.5,0.809]
[1720853399610,1.10206744,3143.9,3143.5,0.809]
[1720853399939,1.10206744,3143.9,3143.4,3.0]
[1720853400138,0.03269026,3143.8,3143.5,0.809]
[1720853400341,1.10206744,3143.7,3143.5,0.809]
[1720853400637,1.10206744,3143.7,3143.6,0.809]
[1720853400638,1.13470002,3143.7,3143.6,0.809]
[1720853401214,1.13478126,3143.7,3143.4,3.809]
[1720853401412,2.3593,3144.2,3143.4,0.809]
[1720853401413,1.10214868,3143.6,3143.4,0.809]
[1720853401628,1.65214868,3144.1,3143.5,3.0]
[1720853401830,1.50331064,3144.0,3143.4,0.809]
[1720853402035,1.10216577,3143.9,3143.4,0.809]
[1720853402430,0.03249355,3143.8,3143.4,0.809]
[1720853402641,1.10216577,3143.7,3143.3,0.809]
[1720853403041,0.03280474,3143.6,3143.3,0.809]
[1720853403209,1.10216577,3143.5,3143.3,0.809]
[1720853403415,1.13446582,3143.5,3143.4,0.809]
[1720853404528,1.13444731,3143.5,3143.4,0.809]
[1720853405136,0.03230005,3143.5,3143.4,0.809]
[1720853405354,9.78774357,3144.0,3143.4,0.809]
[1720853405564,1.65214204,3143.9,3143.6,0.809]
[1720853405858,1.10214204,3143.8,3143.6,0.809]
[1720853406060,1.10214204,3143.7,3143.6,0.809]
[1720853406223,0.55,3143.9,3143.6,0.809]
[1720853406224,1.10214204,3143.8,3143.6,0.809]
[1720853407625,0.03248533,3143.7,3143.6,0.809]
[1720853408059,1.65214233,3143.9,3143.6,0.809]
[1720853408257,0.03248533,3143.7,3143.6,0.809]
[1720853408469,1.10214233,3143.7,3143.6,0.809]
[1720853408775,1.13462766,3143.7,3143.6,0.809]
[1720853411294,0.03248533,3143.7,3143.6,0.809]
[1720853411503,1.13462614,3143.7,3143.6,0.809]
[1720853411698,1.65214081,3143.9,3143.6,0.809]
[1720853412001,1.10214097,3143.8,3143.6,0.809]
[1720853412154,1.10214097,3143.7,3143.4,0.809]
[1720853412359,1.1346263,3143.7,3143.4,0.809]
[1720853412586,1.10214097,3143.6,3143.3,4.52185]
[1720853412760,1.10214097,3143.6,3143.5,3.1039]
[1720853412959,1.10214097,3143.6,3143.5,5.3307]
[1720853413391,1.10214097,3143.6,3143.5,3.1039]
[1720853414205,1.10209789,3143.6,3143.5,3.1039]
[1720853414372,1.10209789,3143.6,3143.5,5.33071]
[1720853414983,1.10209631,3143.6,3143.5,5.33071]
[1720853415297,1.10209631,3143.6,3143.5,7.55752]
[1720853415500,1.10209631,3143.6,3143.5,8.33071]
[1720853417166,1.10209631,3143.6,3143.5,3.809]
[1720853417471,1.13458121,3143.6,3143.5,3.809]
[1720853418401,1.13452352,3143.6,3143.5,6.03581]
[1720853418607,1.10203862,3143.6,3143.5,6.03581]
[1720853421804,1.10204182,3143.6,3143.5,6.03581]
[1720853422303,1.10204181,3143.6,3143.5,6.03581]
[1720853422916,1.13457618,3143.6,3143.5,6.03581]
[1720853423473,1.13457618,3143.6,3143.5,3.809]
[1720853423897,1.13457618,3143.6,3143.5,0.809]
[1720853424400,1.13462369,3143.6,3143.5,0.809]
[1720853425279,1.13466837,3143.6,3143.5,0.809]
[1720853427115,1.13466837,3143.6,3143.3,0.809]
[1720853427529,1.102134,3143.5,3143.3,0.809]
[1720853427812,0.03236451,3143.4,3143.3,0.809]
[1720853427992,1.13449851,3143.4,3143.3,0.809]
[1720853428615,1.13458215,3143.4,3143.3,0.809]
[1720853431910,1.17474879,3143.4,3143.3,0.809]
[1720853432090,1.17471088,3143.4,3143.3,0.809]
[1720853432720,1.17471168,3143.4,3143.3,0.809]
[1720853434826,1.1747505,3143.4,3143.3,0.809]
[1720853435532,0.07253115,3143.4,3143.3,0.809]
[1720853435841,1.10221937,3143.7,3143.3,0.809]
[1720853436131,1.10221937,3143.6,3143.3,0.809]
[1720853436359,4.64480367,3143.8,3143.3,0.809]
[1720853436360,1.10221937,3143.7,3143.3,0.809]
[1720853436506,2.41976603,3143.7,3143.3,0.809]
[1720853436707,1.10221937,3143.6,3143.3,0.809]
[1720853438222,0.07143042,3143.5,3143.3,0.809]
[1720853438443,1.10221937,3143.4,3143.3,0.809]
[1720853438622,1.17359338,3143.4,3143.3,0.809]
[1720853438822,1.17359338,3143.4,3142.9,2.4642]
[1720853439042,1.10224477,3143.3,3143.0,0.809]
[1720853439236,1.10224477,3143.2,3142.7,3.0]
[1720853439537,1.17350409,3143.2,3143.0,0.809]
[1720853439714,1.10224477,3143.1,3143.0,0.809]
[1720853440142,1.10224477,3143.1,3142.8,0.809]
[1720853441246,1.10224477,3143.1,3143.0,0.809]
[1720853441815,1.17346056,3143.1,3143.0,0.809]
[1720853442448,1.17355648,3143.1,3143.0,0.809]
[1720853442949,1.17352855,3143.1,3143.0,0.809]
[1720853445248,1.1735231,3143.1,3143.0,0.809]
[1720853445847,0.07121579,3143.1,3143.0,0.809]
[1720853446158,1.1023074,3143.1,3143.0,0.809]
[1720853446371,0.07179609,3143.1,3143.0,0.809]
[1720853446531,1.1023074,3143.1,3143.0,0.809]
[1720853446738,1.17349529,3143.1,3143.0,0.809]
[1720853449312,1.17351891,3143.1,3143.0,0.809]
[1720853452786,1.17350634,3143.1,3143.0,0.809]
[1720853453293,1.17349623,3143.1,3143.0,0.809]
[1720853455365,1.1734961,3143.1,3143.0,0.809]
[1720853456309,1.17348659,3143.1,3143.0,0.809]
[1720853456685,1.17348659,3143.1,3143.0,3.03617]
[1720853459701,1.17348782,3143.1,3143.0,3.03617]
[1720853461375,1.17348782,3143.1,3143.0,5.32587]
[1720853461674,1.17348782,3143.1,3143.0,7.55304]
[1720853461979,1.10229993,3143.1,3143.0,10.55304]
[1720853462393,7.76134986,3143.9,3143.1,2.22704]
[1720853462584,2.35481931,3143.8,3143.4,0.809]
[1720853462782,1.10219307,3143.7,3143.4,0.809]
[1720853462997,1.10219307,3143.6,3143.4,0.809]
[1720853463193,1.17372227,3143.6,3143.4,0.809]
[1720853463386,1.10219307,3143.5,3143.4,0.809]
[1720853463706,1.17366586,3143.5,3143.4,0.809]
[1720853464919,1.17366491,3143.5,3143.4,0.809]
[1720853465708,0.07147279,3143.5,3143.4,0.809]
[1720853466007,1.10220135,3143.8,3143.4,0.809]
[1720853466204,1.10220135,3143.7,3143.4,0.809]
[1720853466396,1.10220135,3143.6,3143.4,0.809]
[1720853466593,1.10220135,3143.5,3143.4,0.809]
[1720853466798,1.17366033,3143.5,3143.4,0.809]
[1720853468171,3.47936033,3143.5,3143.4,0.809]
[1720853468415,4.02936033,3143.5,3143.1,3.0]
[1720853468717,1.10220135,3143.4,3143.0,0.809]
[1720853469100,0.07134616,3143.3,3143.0,0.809]
[1720853469304,1.10228805,3143.2,3143.0,0.809]
[1720853469498,1.10228805,3143.1,3143.0,0.809]
[1720853469701,0.07123333,3143.1,3143.0,0.809]
[1720853469881,1.17352138,3143.1,3143.0,0.809]
[1720853470816,1.17352138,3143.1,3143.0,5.51587]
[1720853471001,1.17352138,3143.1,3143.0,10.74304]
[1720853471314,1.10228805,3143.1,3143.0,10.74304]
[1720853471616,7.76134986,3143.9,3143.3,2.4797]
[1720853471617,10.10124418,3143.9,3143.3,2.4797]
[1720853471788,1.1021387,3143.8,3143.6,0.809]
[1720853471988,1.1021387,3143.7,3143.6,0.809]
[1720853472604,10.10124418,3143.9,3143.6,0.809]
[1720853472605,10.10170071,3143.9,3143.6,0.809]
[1720853472915,7.76134986,3143.9,3143.8,0.809]
[1720853473216,1.43494127,3143.9,3143.8,0.809]
[1720853474316,1.50661185,3143.9,3143.8,0.809]
[1720853475294,6.5366335,3143.9,3143.2,4.70669]
[1720853475484,6.5366335,3143.9,3143.2,2.22699]
[1720853475485,1.1020926,3143.8,3143.2,2.22699]
[1720853475690,3.51280567,3143.8,3143.3,0.809]
[1720853475892,1.1020926,3143.7,3143.3,0.809]
[1720853476228,1.10218491,3143.6,3143.2,3.03599]
[1720853476396,1.10218491,3143.5,3143.2,3.03598]
[1720853476596,2.41083786,3143.8,3143.4,0.809]
[1720853476597,1.10218491,3143.7,3143.4,0.809]
[1720853476799,2.41083786,3143.8,3143.4,0.809]
[1720853476800,1.10218491,3143.6,3143.4,0.809]
[1720853477121,1.10218491,3143.5,3143.4,0.809]
[1720853477924,1.17302598,3143.5,3143.4,0.809]
[1720853478632,0.07084107,3143.5,3143.4,0.809]
[1720853478797,1.1021419,3143.8,3143.4,0.809]
[1720853478994,0.07095096,3143.5,3143.4,0.809]
[1720853479221,1.1021419,3143.5,3143.4,0.809]
[1720853479433,0.07095096,3143.5,3143.4,3.2887]
[1720853479724,1.10214196,3143.6,3143.4,3.2887]
[1720853480020,1.10214196,3143.5,3143.4,3.2887]
[1720853480220,1.10214196,3143.8,3143.4,3.2887]
[1720853480524,1.10214196,3143.7,3143.4,3.2887]
[1720853480688,3.44167999,3143.8,3143.4,3.2887]
[1720853480896,1.10214196,3143.7,3143.4,3.2887]
[1720853481113,1.10214196,3143.8,3143.4,3.2887]
[1720853481315,1.10214196,3143.7,3143.4,3.2887]
[1720853481626,1.10214196,3143.6,3143.4,3.2887]
[1720853481825,1.17316706,3143.6,3143.4,3.2887]
[1720853482124,1.10214196,3143.5,3143.4,0.809]
[1720853482506,1.17311066,3143.5,3143.4,0.809]
[1720853482889,0.0709687,3143.5,3143.4,0.809]
[1720853483234,1.17314158,3143.5,3143.4,0.809]
[1720853483430,1.17314158,3143.5,3143.3,2.22692]
[1720853483616,1.17314438,3143.5,3143.3,2.22692]
[1720853483801,1.10217568,3143.4,3143.3,2.22692]
[1720853485243,1.17297808,3143.4,3143.2,0.809]
[1720853485420,1.10217568,3143.3,3143.1,3.0]
[1720853485620,1.10221149,3143.3,3143.1,3.0]
[1720853485826,1.10221149,3143.2,3143.0,3.809]
[1720853486138,1.10221149,3143.1,3143.0,3.809]
[1720853486523,1.10226845,3143.1,3143.0,3.809]
[1720853488734,1.17286068,3143.1,3143.0,3.809]
[1720853490046,1.17286823,3143.1,3143.0,3.809]
[1720853491827,1.17286823,3143.1,3143.0,0.809]
[1720853493114,1.17286823,3143.1,3142.8,0.809]
[1720853493312,0.07059223,3143.1,3143.0,0.809]
[1720853493563,1.17293756,3143.1,3143.0,0.809]
[1720853493732,2.4833,3143.4,3143.0,0.809]
[1720853493933,0.07137802,3143.1,3143.0,0.809]
[1720853494122,1.10234016,3143.1,3143.0,0.809]
[1720853494320,1.17292203,3143.1,3143.0,0.809]
[1720853494521,1.17292203,3143.1,3142.8,0.809]
[1720853494859,1.10234016,3143.0,3142.8,0.809]
[1720853495038,0.07049956,3142.9,3142.8,0.809]
[1720853495247,1.17283972,3142.9,3142.8,0.809]
[1720853495751,1.17285631,3142.9,3142.8,0.809]
[1720853496948,1.17285146,3142.9,3142.8,0.809]
[1720853500050,1.17285146,3142.9,3142.4,2.22754]
[1720853500353,1.10242305,3142.8,3142.6,0.809]
[1720853500561,1.10242305,3142.7,3142.6,0.809]
[1720853500721,1.17275677,3142.7,3142.6,0.809]
[1720853501355,1.17275677,3142.7,3142.4,3.0]
[1720853501593,1.10242305,3142.6,3142.5,0.809]
[1720853501733,1.10242305,3142.6,3142.5,3.809]
[1720853501931,1.17270033,3142.6,3142.5,3.809]
[1720853502133,1.10242305,3142.6,3142.5,3.809]
[1720853502467,1.10242305,3142.9,3142.5,3.809]
[1720853502773,1.1728132,3142.8,3142.7,0.809]
[1720853503437,1.1728132,3142.8,3142.5,3.0]
[1720853503639,0.07039015,3142.8,3142.6,0.809]
[1720853503867,1.10243977,3142.7,3142.6,0.809]
[1720853504122,1.17280404,3142.7,3142.6,0.809]
[1720853504249,0.07036427,3142.7,3142.6,0.809]
[1720853504563,1.10243984,3142.9,3142.6,0.809]
[1720853504730,0.07036427,3142.7,3142.6,0.809]
[1720853504931,1.10243984,3142.7,3142.6,0.809]
[1720853505156,1.17280411,3142.7,3142.6,0.809]
[1720853506485,1.17277419,3142.7,3142.6,0.809]
[1720853507131,0.07036427,3142.7,3142.6,0.809]
[1720853507554,1.17276495,3142.7,3142.6,0.809]
[1720853507731,1.10240068,3142.7,3142.6,0.809]
[1720853507932,1.17274545,3142.7,3142.6,0.809]
[1720853510734,1.17270491,3142.7,3142.6,0.809]
[1720853514059,0.07034477,3142.7,3142.6,5.40525]
[1720853514275,1.10235988,3142.7,3142.6,8.40525]
[1720853514572,7.42844357,3143.3,3142.7,2.22732]
[1720853514760,1.10235592,3143.2,3142.9,0.809]
[1720853515080,1.10235592,3143.1,3142.9,0.809]
[1720853515286,1.10235592,3143.0,3142.9,0.809]
[1720853515441,1.10235592,3143.2,3142.9,0.809]
[1720853516870,1.1023664,3143.1,3142.9,0.809]
[1720853517252,1.1023664,3143.0,3142.9,0.809]
[1720853517566,0.06839324,3143.0,3142.9,0.809]
[1720853517757,1.17075964,3143.0,3142.9,0.809]
[1720853517956,1.1023664,3143.0,3142.9,0.809]
[1720853518158,0.06839324,3143.0,3142.9,0.809]
[1720853518361,1.17075964,3143.0,3142.9,0.809]
[1720853518589,1.1023664,3143.0,3142.9,0.809]
[1720853518753,0.06839324,3143.0,3142.9,0.809]
[1720853519084,1.1023664,3143.1,3142.9,0.809]
[1720853519380,1.17075964,3143.0,3142.9,0.809]
[1720853519753,1.17075964,3143.0,3142.8,2.22728]
[1720853519961,1.1023664,3142.9,3142.8,3.03628]
[1720853520359,1.17070505,3142.9,3142.8,3.03628]
[1720853520851,1.17068378,3142.9,3142.8,3.03628]
[1720853521688,1.17068378,3142.9,3142.8,7.63239]
[1720853521979,1.17068378,3142.9,3142.8,12.8597]
[1720853522577,1.17068378,3142.9,3142.8,10.63239]
[1720853522984,1.17068378,3142.9,3142.8,8.40508]
[1720853523582,0.06833865,3142.9,3142.8,8.40508]
[1720853523883,3.38857658,3143.2,3142.7,0.809]
[1720853524087,3.02914436,3143.2,3142.7,0.809]
[1720853524291,1.10235883,3143.1,3142.7,0.809]
[1720853524464,3.02914436,3143.2,3142.7,0.809]
[1720853524465,1.10235883,3143.0,3142.7,0.809]
[1720853524660,1.10235883,3143.1,3142.7,0.809]
[1720853524862,1.10235883,3143.0,3142.7,0.809]
[1720853525069,1.10235883,3143.0,3142.5,2.22747]
[1720853525070,1.10235883,3143.0,3142.5,3.03647]
[1720853525391,0.06611232,3142.9,3142.5,3.03647]
[1720853525589,1.10235883,3142.8,3142.5,3.03647]
[1720853526487,1.10243179,3142.7,3142.5,3.03647]
[1720853526712,1.10243179,3142.6,3142.5,3.03647]
[1720853527070,1.10243225,3142.6,3142.5,3.03647]
[1720853528971,1.1683455,3142.6,3142.5,3.03647]
[1720853530472,1.1683455,3142.6,3142.5,0.809]
[1720853530473,1.16835233,3142.6,3142.5,0.809]
[1720853530701,1.16837607,3142.6,3142.5,0.809]
[1720853533988,1.16839397,3142.6,3142.5,0.809]
[1720853534404,0.06591325,3142.6,3142.5,0.809]
[1720853534817,1.10244812,3142.6,3142.5,0.809]
[1720853536322,1.10244175,3142.6,3142.5,0.809]
[1720853536516,1.16744332,3142.6,3142.5,0.809]
[1720853537499,1.1674343,3142.6,3142.5,0.809]
[1720853538802,1.16742758,3142.6,3142.5,0.809]
[1720853540135,0.06500157,3142.6,3142.5,0.809]
[1720853540522,1.10242849,3142.6,3142.5,0.809]
[1720853540836,1.1651796,3142.6,3142.5,0.809]
[1720853541022,1.1651796,3142.6,3142.3,2.22766]
[1720853541224,1.10242849,3142.5,3142.3,2.22766]
[1720853541746,0.06266877,3142.4,3142.3,2.22766]
[1720853541952,0.06266877,3142.4,3142.3,3.03666]
[1720853542132,1.1652044,3142.4,3142.3,3.03666]
[1720853545556,0.06266877,3142.4,3142.3,3.03666]
[1720853545727,1.16517623,3142.4,3142.3,3.03666]
[1720853546052,0.06266877,3142.4,3142.3,3.03666]
[1720853546354,1.10251908,3142.6,3142.3,3.03666]
[1720853546550,0.06265671,3142.4,3142.3,3.03666]
[1720853546752,1.10251908,3142.4,3142.3,3.03666]
[1720853546952,0.06277892,3142.4,3142.3,3.03666]
[1720853547454,1.10251908,3142.4,3142.3,3.03666]
[1720853547623,1.165298,3142.4,3142.3,3.03666]
[1720853548024,1.16530845,3142.4,3142.3,3.03666]
[1720853548853,1.16530845,3142.4,3142.3,0.809]
[1720853549051,0.06277892,3142.4,3142.3,0.809]
[1720853549460,1.16532607,3142.4,3142.3,0.809]
[1720853552632,1.16533299,3142.4,3142.3,0.809]
[1720853553751,1.16533299,3142.4,3142.2,3.0]
[1720853553954,1.16533299,3142.4,3142.3,0.809]
[1720853553955,0.06277892,3142.4,3142.3,0.809]
[1720853554260,1.10255633,3142.6,3142.3,0.809]
[1720853554465,1.10255633,3142.4,3142.3,0.809]
[1720853554768,1.16531479,3142.4,3142.3,0.809]
[1720853556270,1.16531293,3142.4,3142.3,0.809]
[1720853556654,1.16531261,3142.4,3142.3,0.809]
[1720853558732,1.16532704,3142.4,3142.3,0.809]
[1720853559432,0.06275846,3142.4,3142.3,0.809]
[1720853559638,1.1653274,3142.4,3142.3,0.809]
[1720853559862,1.10256894,3142.4,3142.3,0.809]
[1720853561463,1.16514604,3142.4,3142.3,0.809]
[1720853563069,0.0625771,3142.4,3142.3,0.809]
[1720853563451,1.10253845,3142.4,3142.3,0.809]
[1720853563651,1.16511555,3142.4,3142.3,0.809]
[1720853566463,0.0625771,3142.4,3142.3,0.809]
[1720853566650,1.16511626,3142.4,3142.3,0.809]
[1720853566858,1.10253916,3142.4,3142.3,0.809]
[1720853567045,1.16408755,3142.4,3142.3,0.809]
[1720853569473,1.16408705,3142.4,3142.3,0.809]
[1720853569854,1.16408787,3142.4,3142.3,0.809]
[1720853573353,0.06154897,3142.4,3142.3,0.809]
[1720853573549,1.10253891,3142.4,3142.3,0.809]
[1720853573763,1.16408788,3142.4,3142.3,0.809]
[1720853575670,1.16408788,3142.4,3142.2,3.0]
[1720853575867,2.76670842,3143.0,3142.3,3.2806]
[1720853576075,2.3417345,3144.5,3144.4,6.67851]
[1720853576401,3.87374157,3147.0,3145.3,2.22554]
[1720853576556,0.40483447,3148.1,3145.1,0.809]
[1720853576557,0.809,3146.4,3145.1,0.809]
[1720853576763,0.809,3146.2,3145.0,3.03474]
[1720853576970,0.809,3146.2,3145.1,2.22565]
[1720853577164,0.809,3146.2,3145.2,0.809]
[1720853577706,0.809,3146.4,3145.2,3.03459]
[1720853578104,0.03482954,3146.3,3145.4,0.809]
[1720853578275,0.03482954,3146.3,3145.2,2.22559]
[1720853578476,0.809,3146.3,3145.2,2.22559]
[1720853578662,0.03477325,3146.2,3145.3,2.22552]
[1720853578868,0.58477325,3146.2,3145.3,2.22552]
[1720853579069,2.8969,3146.2,3145.3,2.22552]
[1720853579303,0.40533747,3146.1,3145.3,2.22552]
[1720853579511,0.55,3146.0,3145.3,2.22552]
[1720853579677,0.55,3146.0,3145.4,2.22543]
[1720853579873,0.03463486,3145.9,3145.4,2.22543]
[1720853580813,0.03463486,3145.9,3145.5,2.22538]
[1720853582198,0.03463486,3145.9,3145.4,0.809]
[1720853582406,0.03463486,3145.9,3145.6,2.22532]
[1720853583814,0.03463486,3145.9,3145.7,2.22525]
[1720853584192,0.03463486,3145.9,3145.8,2.22518]
[1720853584591,0.55,3146.0,3145.9,2.22511]
[1720853584793,0.58252542,3146.0,3145.9,2.22511]
[1720853585985,0.03252542,3146.0,3145.9,2.22511]
[1720853586195,2.493,3146.7,3146.1,2.22496]
[1720853586514,0.83216316,3146.6,3146.1,2.22496]
[1720853588417,0.83216316,3146.6,3146.2,2.2249]
[1720853588615,0.83216316,3146.6,3146.3,2.22476]
[1720853588616,0.28216316,3146.6,3146.3,2.22476]
[1720853588829,0.03286316,3146.6,3146.3,4.44952]
[1720853589144,5.493,3147.2,3146.5,2.22469]
[1720853589440,0.03341587,3147.1,3146.5,2.22469]
[1720853590331,0.03341587,3147.1,3146.6,2.22461]
[1720853590491,0.25264159,3147.0,3146.6,2.22461]
[1720853590694,0.55,3146.9,3146.6,2.22461]
[1720853590918,0.58329531,3146.9,3146.6,2.22461]
[1720853591384,0.25264159,3147.0,3146.6,2.22461]
[1720853591581,0.5821062,3146.9,3146.6,2.22461]
[1720853592012,0.5821062,3146.9,3146.4,2.22475]
[1720853592013,0.0321062,3146.9,3146.7,2.22455]
[1720853596392,0.0321062,3146.9,3146.5,2.22464]
[1720853596622,0.0321062,3146.9,3146.2,2.22488]
[1720853596793,0.5821062,3146.9,3146.2,2.22488]
[1720853597203,0.5821062,3146.9,3146.4,2.22475]
[1720853598523,0.5821062,3146.9,3146.2,4.44973]
[1720853600022,0.5821062,3146.9,3146.3,2.22483]
[1720853611439,0.27456416,3147.0,3146.1,2.22492]
[1720853611669,0.808,3146.7,3145.9,2.22506]
[1720853612529,0.808,3146.7,3145.7,2.22521]
[1720853612921,0.808,3146.7,3145.8,2.22518]
[1720853614135,0.808,3146.7,3145.5,2.22536]
[1720853614341,0.808,3146.5,3145.5,2.22536]
[1720853614516,0.55,3146.4,3145.5,2.22536]
[1720853615624,0.33271747,3146.3,3145.5,2.22536]
[1720853616243,0.33271747,3146.3,3145.0,7.41]
[1720853616244,1.14071747,3146.3,3145.1,2.22565]
[1720853616417,0.808,3146.1,3145.0,3.03371]
[1720853617473,0.55,3146.0,3145.2,0.808]
[1720853617687,0.71907175,3146.2,3145.4,0.808]
[1720853618956,0.71907175,3146.2,3145.4,0.7741]
[1720853619156,0.71907175,3146.2,3145.2,0.808]
[1720853621351,0.71907175,3146.2,3145.3,3.4309864]
[1720853621660,0.71907175,3146.2,3145.4,2.76706282]
[1720853621830,0.71907175,3146.2,3145.5,1.10682513]
[1720853622031,0.71907175,3146.2,3145.2,0.66392358]
[1720853622231,0.18597892,3146.1,3145.3,3.43107436]
[1720853622464,0.55,3146.0,3145.4,2.76715078]
[1720853622643,0.55,3146.0,3145.3,0.66392358]
[1720853622969,0.55,3146.0,3145.4,2.76714628]
[1720853623129,0.55,3146.0,3145.3,0.66392358]
[1720853623333,0.55,3146.0,3145.4,1.10685812]
[1720853623531,0.55,3146.0,3145.2,0.66434569]
[1720853623768,0.55,3146.0,3145.3,3.4314631]
[1720853623930,0.55,3146.0,3145.4,2.76711741]
[1720853624131,0.55,3146.0,3145.1,4.03018853]
[1720853624132,0.55,3146.0,3145.2,0.66434569]
[1720853624358,0.55,3146.0,3145.3,2.76713915]
[1720853624663,0.55,3146.0,3145.1,3.69801569]
[1720853624833,0.55,3146.0,3145.2,2.76707236]
[1720853625034,0.55,3146.0,3145.3,2.76707236]
[1720853625235,0.55,3146.0,3145.1,3.6980443]
[1720853625435,0.55,3146.0,3145.2,2.76706848]
[1720853625635,0.55,3146.0,3145.3,1.91482145]
[1720853625871,0.55,3146.0,3145.3,0.808]
[1720853626065,0.55,3146.2,3145.3,0.808]
[1720853629971,0.55,3146.2,3145.3,3.03352]
[1720853630755,0.33271747,3146.3,3145.3,3.03352]
[1720853631389,0.68476922,3146.3,3145.3,3.03352]
[1720853632788,0.68476922,3146.3,3145.4,2.22546]
[1720853633486,0.33271747,3146.3,3145.7,0.808]
[1720853637995,0.33271747,3146.3,3145.7,3.03325]
[1720853639407,0.33271747,3146.3,3145.7,2.22525]
[1720853643878,0.33271747,3146.3,3145.5,3.03334]
[1720853644080,2.3015,3146.2,3145.3,5.25901]
[1720853644303,0.26342175,3146.1,3145.4,2.22546]
[1720853658016,2.4079,3146.0,3145.2,2.22555]
[1720853658337,2.4079,3146.0,3145.2,6.03355]
[1720853660733,2.4079,3146.0,3145.4,0.808]
[1720853660947,2.74061747,3146.3,3145.6,0.808]
[1720853661170,3.01467922,3146.3,3145.6,0.808]
[1720853673295,3.01467922,3146.3,3145.6,3.03326]
[1720853677162,2.68196175,3146.3,3145.7,2.22525]
[1720853681252,2.68196175,3146.3,3145.6,0.808]
[1720853681457,2.68196175,3146.3,3145.5,2.22534]
[1720853681660,0.26819618,3146.2,3145.6,2.22527]
[1720853683052,2.4782,3146.1,3145.6,2.22527]
[1720853683253,2.4782,3146.1,3145.5,2.22534]
[1720853683452,2.4782,3146.1,3145.6,2.22532]
[1720853684686,2.4782,3146.1,3145.2,3.0]
[1720853684865,2.4195,3145.9,3145.1,3.03365]
[1720853685064,2.4195,3145.9,3145.2,3.0]
[1720853685463,2.4195,3145.9,3145.1,5.22567]
[1720853686548,2.4195,3145.9,3145.1,3.0]
[1720853686783,2.4195,3145.9,3145.0,5.22575]
[1720853687092,2.4195,3145.7,3145.0,5.22575]
[1720853692392,2.4195,3145.7,3145.0,3.0]
[1720853692569,2.4195,3145.7,3144.9,3.0]
[1720853692764,2.4195,3145.7,3145.0,0.808]
[1720853695087,2.4195,3145.7,3144.6,2.22598]
[1720853695254,2.4195,3145.5,3144.8,0.808]
[1720853702584,2.4195,3145.5,3144.6,0.808]
[1720853703567,2.4195,3145.5,3144.8,0.808]
[1720853703992,2.4195,3145.5,3144.6,0.808]
[1720853711816,2.4195,3145.5,3144.6,3.03402]
[1720853712124,2.4195,3145.5,3144.8,0.808]
[1720853712416,2.4195,3145.5,3144.8,0.87158973]
[1720853712991,2.4195,3145.5,3144.8,0.808]
[1720853717302,2.4195,3145.5,3144.8,3.03389]
[1720853722208,2.4195,3145.5,3145.1,2.22568]
[1720853734767,2.4195,3145.5,3145.2,2.2256]
[1720853738841,2.4195,3145.5,3145.0,2.22569]
[1720853746991,2.4195,3145.5,3144.7,3.0]
[1720853747183,2.4195,3145.5,3144.6,2.22602]
[1720853749095,2.4195,3145.5,3144.5,6.0341]
[1720853749255,2.311,3145.3,3144.5,6.0341]
[1720853754004,2.311,3145.3,3144.6,2.22602]
[1720853754210,2.311,3145.3,3144.7,0.808]
[1720853755000,2.311,3145.8,3144.9,0.808]
[1720853755207,0.26437257,3145.7,3144.9,0.808]
[1720853756902,0.26437257,3145.7,3144.9,3.03382]
[1720853757781,2.311,3145.8,3145.1,0.808]
[1720853757983,2.311,3145.8,3145.2,0.06358077]
[1720853758696,2.311,3145.8,3145.2,2.28919077]
[1720853758895,2.311,3145.8,3145.3,0.06357956]
[1720853759077,2.311,3145.8,3145.3,0.87157956]
[1720853759282,0.3327257,3145.9,3145.5,0.808]
[1720853759480,2.311,3146.1,3145.5,0.87157521]
[1720853760315,2.311,3146.1,3145.5,0.808]
[1720853760497,2.311,3146.1,3145.4,2.22546]
[1720853762793,2.311,3146.1,3145.2,4.45117]
[1720853763122,2.5421,3146.0,3145.2,4.45117]
[1720853764103,2.5421,3146.0,3145.3,2.22552]
[1720853766645,2.5421,3146.0,3144.9,5.22576]
[1720853766843,2.5421,3146.0,3144.9,3.03376]
[1720853767131,2.5421,3146.0,3145.0,5.22574]
[1720853767338,2.4237,3145.8,3145.0,2.22574]
[1720853774659,2.4237,3145.8,3145.0,5.22574]
[1720853775180,2.4237,3145.8,3144.9,0.808]
[1720853775339,2.4237,3145.8,3144.9,3.808]
[1720853777451,2.4237,3145.8,3144.9,6.03381]
[1720853777643,2.4237,3145.8,3145.1,0.808]
[1720853783365,2.4237,3145.8,3145.0,2.22575]
[1720853808003,2.4237,3145.8,3145.2,2.22556]
[1720853814428,2.4237,3145.8,3145.0,2.22569]
[1720853820222,2.4237,3145.8,3145.0,2.28927629]